fUST/lending_fUST_20260115
["ID","MTS","AMOUNT","RATE_DAILY","PERIOD"]
[401989034,1768441847090,-2603.49,0.00019,2]
[401989035,1768441847099,-17969.48957745,0.00019,2]
[401989036,1768441847109,-303.10001603,0.00019089,2]
[401989037,1768441847118,-200.58520606,0.00019131,2]
[401989038,1768441847129,-155.0,0.00019147,2]
[401989039,1768441847139,-3161.86902697,0.00019152,2]
[401989040,1768441847149,-595.37131296,0.00019177,2]
[401989041,1768441847159,-217.15233878,0.00019177,2]
[401989042,1768441847169,-507.2385,0.00019178,2]
[401989043,1768441847178,-507.2385,0.00019178,2]
[401989044,1768441847187,-200.0,0.00019178,2]
[401989045,1768441847196,-507.2385,0.00019178,2]
[401989046,1768441847205,-507.2385,0.00019178,2]
[401989047,1768441847215,-507.2385,0.00019178,2]
[401989048,1768441847224,-507.2385,0.00019178,2]
[401989049,1768441847233,-507.2385,0.00019178,2]
[401989050,1768441847243,-507.2385,0.00019178,2]
[401989051,1768441847252,-507.2385,0.00019178,2]
[401989052,1768441847261,-507.2385,0.00019178,2]
[401989053,1768441847270,-507.2385,0.00019178,2]
[401989054,1768441847279,-507.2385,0.00019178,2]
[401989055,1768441847288,-152.6004965,0.00019178,2]
[401989056,1768441847298,-151.0,0.00019178,2]
[401989057,1768441847307,-151.0,0.00019178,2]
[401989058,1768441847317,-151.0,0.00019178,2]
[401989059,1768441847327,-235.000077,0.00019178,2]
[401989060,1768441847335,-1201.527246,0.00019178,2]
[401989061,1768441847345,-1201.527246,0.00019178,2]
[401989062,1768441847354,-1201.527246,0.00019178,2]
[401989063,1768441847364,-1201.527246,0.00019178,2]
[401989064,1768441847373,-1201.527246,0.00019178,2]
[401989065,1768441847383,-1201.527246,0.00019178,2]
[401989066,1768441847395,-1201.527246,0.00019178,2]
[401989067,1768441847403,-1201.527246,0.00019178,2]
[401989068,1768441847412,-1201.527246,0.00019178,2]
[401989069,1768441847421,-1201.527246,0.00019178,2]
[401989070,1768441847431,-1201.527246,0.00019178,2]
[401989071,1768441847440,-1201.527246,0.00019178,2]
[401989072,1768441847449,-1201.527246,0.00019178,2]
[401989073,1768441847459,-1201.527246,0.00019178,2]
[401989074,1768441847468,-1201.527246,0.00019178,2]
[401989075,1768441847477,-1201.527246,0.00019178,2]
[401989076,1768441847486,-1201.527246,0.00019178,2]
[401989077,1768441847495,-1201.527246,0.00019178,2]
[401989078,1768441847504,-1201.527246,0.00019178,2]
[401989079,1768441847514,-1201.527246,0.00019178,2]
[401989080,1768441847523,-5500.0,0.00019178,2]
[401989081,1768441847534,-5500.0,0.00019178,2]
[401989082,1768441847546,-201.61,0.000192,2]
[401989083,1768441847556,-177.17,0.000192,2]
[401989084,1768441847565,-3527.33,0.000192,2]
[401989085,1768441847574,-26966.75,0.000192,2]
[401989086,1768441847585,-167.84,0.000192,2]
[401989087,1768441847595,-500.99801519,0.00019205,5]
[401989088,1768441847604,-303.10001603,0.00019278,2]
[401989089,1768441847614,-6000.0,0.000193,2]
[401989090,1768441847624,-3551.18839643,0.000193,2]
[401989091,1768441847634,-6000.0,0.000193,2]
[401989092,1768441847644,-299.0,0.00019347,2]
[401989093,1768441847653,-1000.0,0.00019403,2]
[401989094,1768441847662,-791.0,0.00019403,2]
[401989095,1768441847672,-309.72122822,0.00019452,2]
[401989096,1768441847682,-303.10001603,0.00019467,2]
[401989097,1768441847691,-163.0,0.000195,2]
[401989098,1768441847700,-163.0,0.000195,2]
[401989099,1768441847710,-7908.37700335,0.00019576,2]
[401989100,1768441847720,-362.0,0.00019578,2]
[401989101,1768441847729,-507.2385,0.00019589,3]
[401989102,1768441847739,-507.2385,0.00019589,3]
[401989103,1768441847748,-507.2385,0.00019589,3]
[401989104,1768441847757,-507.2385,0.00019589,3]
[401989105,1768441847767,-668.0,0.00019621,2]
[401989106,1768441847776,-303.10001603,0.00019656,2]
[401989107,1768441847787,-168.34,0.00019685,2]
[401989108,1768441847796,-617.40005154,0.00019725,2]
[401989109,1768441847806,-225.18697532,0.00019725,2]
[401989110,1768441847815,-800.0,0.00019726,2]
[401989111,1768441847826,-250.0,0.00019726,2]
[401989112,1768441847836,-6000.0,0.00019726,2]
[401989113,1768441847845,-250.0,0.00019726,2]
[401989114,1768441847856,-6000.0,0.00019726,2]
[401989115,1768441847867,-454.65002405,0.00019845,4]
[401989116,1768441847878,-6500.0,0.00019848,2]
[401989117,1768441847889,-6500.0,0.00019848,2]
[401989118,1768441847898,-154.81359138,0.0002,2]
[401989119,1768441847908,-668.88471487,0.0002,2]
[401989120,1768441847918,-14703.49659754,0.0002,2]
[401989121,1768441847928,-40870.60787687,0.0002,20]
[401989122,1768441847938,-371.66132516,0.0002,2]
[401989123,1768441847947,-804.32909815,0.0002,2]
[401989124,1768441847956,-163524.2208646,0.0002,7]
[401989125,1768441847967,-75617.81470499,0.0002,2]
[401989126,1768441847977,-809.68655087,0.0002,2]
[401989127,1768441847987,-75199.65731769,0.0002,7]
[401989128,1768441847996,-202.7514447,0.0002,2]
[401989129,1768441848005,-504.32904356,0.0002,2]
[401989130,1768441848014,-673.07189375,0.0002,10]
[401989131,1768441848025,-17587.92944107,0.0002,2]
[401989132,1768441848035,-1048.0,0.0002,2]
[401989133,1768441848046,-9661.0,0.0002,2]
[401989134,1768441848056,-500.0,0.0002,2]
[401989135,1768441848066,-502.66,0.0002,2]
[401989136,1768441848075,-300.0,0.0002,2]
[401989137,1768441848085,-151.61289297,0.0002,2]
[401989138,1768441848099,-507.2385,0.0002,4]
[401989139,1768441848110,-507.2385,0.0002,4]
[401989140,1768441848119,-507.2385,0.0002,4]
[401989141,1768441848129,-507.2385,0.0002,4]
[401989142,1768441848141,-507.2385,0.0002,4]
[401989143,1768441848150,-507.2385,0.0002,4]
[401989144,1768441848160,-507.2385,0.0002,4]
[401989145,1768441848169,-507.2385,0.0002,4]
[401989146,1768441848179,-507.2385,0.0002,4]
[401989147,1768441848189,-507.2385,0.0002,4]
[401989148,1768441848198,-507.2385,0.0002,4]
[401989149,1768441848208,-507.2385,0.0002,4]
[401989150,1768441848217,-2000.0,0.0002,7]
[401989151,1768441848227,-339.47924352,0.00020034,4]
[401989152,1768441848237,-503.71435101,0.0002013,2]
[401989153,1768441848247,-201.61,0.000202,2]
[401989154,1768441848257,-177.17,0.000202,2]
[401989155,1768441848267,-3527.33,0.000202,2]
[401989156,1768441848276,-26966.75,0.000202,2]
[401989157,1768441848285,-643.45477756,0.00020261,2]
[401989158,1768441848294,-640.24385345,0.00020273,2]
[401989159,1768441848303,-233.51889341,0.00020273,2]
[401989160,1768441848313,-201.03509286,0.00020274,2]
[401989161,1768441848323,-4414.6506363,0.00020274,2]
[401989162,1768441848332,-350.0,0.00020274,2]
[401989163,1768441848342,-6500.0,0.00020274,2]
[401989164,1768441848351,-2588.20360307,0.00020396,2]
[401989165,1768441848361,-5199.62611499,0.00020396,2]
[401989166,1768441848369,-507.2385,0.00020411,5]
[401989167,1768441848379,-507.2385,0.00020411,5]
[401989168,1768441848389,-507.2385,0.00020411,5]
[401989169,1768441848399,-507.2385,0.00020411,5]
[401989170,1768441848408,-507.2385,0.00020411,5]
[401989171,1768441848417,-507.2385,0.00020411,5]
[401989172,1768441848428,-507.2385,0.00020411,5]
[401989173,1768441848437,-270.7631,0.00020411,5]
[401989174,1768441848446,-3162.0,0.0002044,2]
[401989175,1768441848455,-668.0,0.00020577,2]
[401989176,1768441848469,-1389.51235473,0.0002061,2]
[401989177,1768441848480,-663.93287602,0.00020821,2]
[401989178,1768441848491,-242.15909246,0.00020821,2]
[401989179,1768441848501,-1000.0,0.00020822,2]
[401989180,1768441848510,-450.0,0.00020822,2]
[401989181,1768441848521,-7000.0,0.00020822,2]
[401989182,1768441848531,-256.51440562,0.000209,2]
[401989183,1768441848541,-500.0,0.00021,3]
[401989184,1768441848550,-3000.0,0.00021,2]
[401989185,1768441848559,-277.38884084,0.00021,2]
[401989186,1768441848568,-42355.45436533,0.00021,2]
[401989187,1768441848578,-2000.0,0.00021,7]
[401989188,1768441848588,-1000.0,0.00021344,10]
[401989189,1768441848598,-1000.0,0.00021344,10]
[401989190,1768441848607,-688.49839244,0.00021369,2]
[401989191,1768441848617,-266.78624788,0.00021369,2]
[401989192,1768441848628,-550.0,0.0002137,2]
[401989193,1768441848637,-7500.0,0.0002137,2]
[401989194,1768441848647,-167.84,0.000214,2]
[401989195,1768441848656,-7908.37700335,0.00021408,2]
[401989196,1768441848666,-4636.88672608,0.00021415,2]
[401989197,1768441848676,-668.0,0.00021533,2]
[401989198,1768441848686,-201.61,0.000216,2]
[401989199,1768441848696,-177.17,0.000216,2]
[401989200,1768441848706,-3527.33,0.000216,2]
[401989201,1768441848716,-26966.75,0.000216,2]
[401989202,1768441848727,-713.97283296,0.00021917,2]
[401989203,1768441848736,-589.243937,0.00021918,2]
[401989204,1768441848747,-151.0,0.00021918,2]
[401989205,1768441848759,-151.0,0.00021918,2]
[401989206,1768441848768,-151.0,0.00021918,2]
[401989207,1768441848778,-151.0,0.00021918,2]
[401989208,1768441848788,-151.0,0.00021918,2]
[401989209,1768441848797,-151.0,0.00021918,2]
[401989210,1768441848807,-170.244151,0.00021918,2]
[401989211,1768441848817,-151.0,0.00021918,2]
[401989212,1768441848826,-166.397228,0.00021918,2]
[401989213,1768441848835,-151.0,0.00021918,2]
[401989214,1768441848844,-166.397228,0.00021918,2]
[401989215,1768441848854,-221.571189,0.00021918,2]
[401989216,1768441848863,-166.397228,0.00021918,2]
[401989217,1768441848872,-166.397228,0.00021918,2]
[401989218,1768441848882,-166.397228,0.00021918,2]
[401989219,1768441848893,-166.397228,0.00021918,2]
[401989220,1768441848903,-166.397228,0.00021918,2]
[401989221,1768441848912,-166.397228,0.00021918,2]
[401989222,1768441848922,-166.397228,0.00021918,2]
[401989223,1768441848931,-166.397228,0.00021918,2]
[401989224,1768441848940,-166.397228,0.00021918,2]
[401989225,1768441848950,-166.397228,0.00021918,2]
[401989226,1768441848959,-166.397228,0.00021918,2]
[401989227,1768441848969,-166.397228,0.00021918,2]
[401989228,1768441848978,-166.397228,0.00021918,2]
[401989229,1768441848987,-166.397228,0.00021918,2]
[401989230,1768441848996,-166.397228,0.00021918,2]
[401989231,1768441849006,-166.397228,0.00021918,2]
[401989232,1768441849016,-166.397228,0.00021918,2]
[401989233,1768441849025,-166.397227,0.00021918,2]
[401989234,1768441849035,-151.0,0.00021918,2]
[401989235,1768441849045,-151.0,0.00021918,2]
[401989236,1768441849055,-151.0,0.00021918,2]
[401989237,1768441849064,-151.0,0.00021918,2]
[401989238,1768441849074,-151.0,0.00021918,2]
[401989239,1768441849085,-151.0,0.00021918,2]
[401989240,1768441849099,-151.0,0.00021918,2]
[401989241,1768441849109,-151.0,0.00021918,2]
[401989242,1768441849119,-151.0,0.00021918,2]
[401989243,1768441849130,-151.0,0.00021918,2]
[401989244,1768441849140,-151.0,0.00021918,2]
[401989245,1768441849150,-151.0,0.00021918,2]
[401989246,1768441849160,-281.005551,0.00021918,2]
[401989247,1768441849169,-151.0,0.00021918,2]
[401989248,1768441849178,-161.937816,0.00021918,2]
[401989249,1768441849188,-151.0,0.00021918,2]
[401989250,1768441849197,-151.0,0.00021918,2]
[401989251,1768441849207,-151.0,0.00021918,2]
[401989252,1768441849217,-153.989207,0.00021918,2]
[401989253,1768441849227,-151.0,0.00021918,2]
[401989254,1768441849237,-151.0,0.00021918,2]
[401989255,1768441849248,-151.0,0.00021918,2]
[401989256,1768441849258,-151.0,0.00021918,2]
[401989257,1768441849269,-151.0,0.00021918,2]
[401989258,1768441849280,-151.0,0.00021918,2]
[401989259,1768441849289,-151.0,0.00021918,2]
[401989260,1768441849299,-151.0,0.00021918,2]
[401989261,1768441849312,-151.0,0.00021918,2]
[401989262,1768441849322,-151.0,0.00021918,2]
[401989263,1768441849333,-151.0,0.00021918,2]
[401989264,1768441849343,-151.0,0.00021918,2]
[401989265,1768441849357,-151.0,0.00021918,2]
[401989266,1768441849366,-151.0,0.00021918,2]
[401989267,1768441849376,-151.0,0.00021918,2]
[401989268,1768441849387,-151.0,0.00021918,2]
[401989269,1768441849397,-151.0,0.00021918,2]
[401989270,1768441849407,-151.0,0.00021918,2]
[401989271,1768441849417,-151.0,0.00021918,2]
[401989272,1768441849427,-252.547124,0.00021918,2]
[401989273,1768441849437,-176.671166,0.00021918,2]
[401989274,1768441849447,-227.21115,0.00021918,2]
[401989275,1768441849457,-227.21115,0.00021918,2]
[401989276,1768441849466,-227.21115,0.00021918,2]
[401989277,1768441849476,-227.21115,0.00021918,2]
[401989278,1768441849486,-227.21115,0.00021918,2]
[401989279,1768441849495,-227.21115,0.00021918,2]
[401989280,1768441849505,-227.21115,0.00021918,2]
[401989281,1768441849515,-227.21115,0.00021918,2]
[401989282,1768441849525,-227.21115,0.00021918,2]
[401989283,1768441849536,-227.21115,0.00021918,2]
[401989284,1768441849546,-227.21115,0.00021918,2]
[401989285,1768441849555,-227.21115,0.00021918,2]
[401989286,1768441849565,-227.21115,0.00021918,2]
[401989287,1768441849575,-227.21115,0.00021918,2]
[401989288,1768441849586,-227.21115,0.00021918,2]
[401989289,1768441849595,-227.21115,0.00021918,2]
[401989290,1768441849605,-227.21115,0.00021918,2]
[401989291,1768441849617,-227.21115,0.00021918,2]
[401989292,1768441849627,-227.21115,0.00021918,2]
[401989293,1768441849637,-227.211152,0.00021918,2]
[401989294,1768441849646,-224.150366,0.00021918,2]
[401989295,1768441849657,-151.0,0.00021918,2]
[401989296,1768441849668,-151.0,0.00021918,2]
[401989297,1768441849679,-171.183927,0.00021918,2]
[401989298,1768441849693,-165.855245,0.00021918,2]
[401989299,1768441849703,-165.855245,0.00021918,2]
[401989300,1768441849713,-165.855245,0.00021918,2]
[401989301,1768441849723,-165.855245,0.00021918,2]
[401989302,1768441849733,-165.855245,0.00021918,2]
[401989303,1768441849743,-165.855245,0.00021918,2]
[401989304,1768441849752,-165.855245,0.00021918,2]
[401989305,1768441849762,-165.855245,0.00021918,2]
[401989306,1768441849773,-165.855245,0.00021918,2]
[401989307,1768441849783,-165.855245,0.00021918,2]
[401989308,1768441849793,-165.855245,0.00021918,2]
[401989309,1768441849802,-165.855245,0.00021918,2]
[401989310,1768441849812,-165.855245,0.00021918,2]
[401989311,1768441849821,-165.855245,0.00021918,2]
[401989312,1768441849831,-165.855245,0.00021918,2]
[401989313,1768441849840,-165.855245,0.00021918,2]
[401989314,1768441849850,-295.806985,0.00021918,2]
[401989315,1768441849859,-165.855245,0.00021918,2]
[401989316,1768441849869,-295.806985,0.00021918,2]
[401989317,1768441849878,-165.855245,0.00021918,2]
[401989318,1768441849888,-295.806985,0.00021918,2]
[401989319,1768441849899,-165.855245,0.00021918,2]
[401989320,1768441849908,-295.806985,0.00021918,2]
[401989321,1768441849918,-165.855253,0.00021918,2]
[401989322,1768441849928,-295.806985,0.00021918,2]
[401989323,1768441849937,-295.806985,0.00021918,2]
[401989324,1768441849946,-295.806985,0.00021918,2]
[401989325,1768441849956,-295.806985,0.00021918,2]
[401989326,1768441849966,-295.806985,0.00021918,2]
[401989327,1768441849976,-295.806985,0.00021918,2]
[401989328,1768441849985,-295.806985,0.00021918,2]
[401989329,1768441849995,-295.806985,0.00021918,2]
[401989330,1768441850005,-295.806985,0.00021918,2]
[401989331,1768441850014,-295.806985,0.00021918,2]
[401989332,1768441850024,-295.806985,0.00021918,2]
[401989333,1768441850036,-295.806985,0.00021918,2]
[401989334,1768441850046,-295.806985,0.00021918,2]
[401989335,1768441850056,-295.806985,0.00021918,2]
[401989336,1768441850066,-295.806985,0.00021918,2]
[401989337,1768441850075,-295.806982,0.00021918,2]
[401989338,1768441850086,-151.0,0.00021918,2]
[401989339,1768441850100,-155.501798,0.00021918,2]
[401989340,1768441850111,-649.149683,0.00021918,2]
[401989341,1768441850120,-649.149683,0.00021918,2]
[401989342,1768441850131,-649.149683,0.00021918,2]
[401989343,1768441850143,-649.149683,0.00021918,2]
[401989344,1768441850153,-649.149683,0.00021918,2]
[401989345,1768441850163,-649.149683,0.00021918,2]
[401989346,1768441850172,-649.149683,0.00021918,2]
[401989347,1768441850181,-649.149683,0.00021918,2]
[401989348,1768441850191,-649.149683,0.00021918,2]
[401989349,1768441850201,-649.149675,0.00021918,2]
[401989350,1768441850211,-466.939068,0.00021918,2]
[401989351,1768441850220,-466.939068,0.00021918,2]
[401989352,1768441850230,-466.939068,0.00021918,2]
[401989353,1768441850240,-466.939068,0.00021918,2]
[401989354,1768441850250,-466.939068,0.00021918,2]
[401989355,1768441850259,-466.939068,0.00021918,2]
[401989356,1768441850269,-466.939068,0.00021918,2]
[401989357,1768441850278,-466.939068,0.00021918,2]
[401989358,1768441850288,-466.939068,0.00021918,2]
[401989359,1768441850298,-466.939068,0.00021918,2]
[401989360,1768441850307,-466.939068,0.00021918,2]
[401989361,1768441850316,-466.939068,0.00021918,2]
[401989362,1768441850326,-466.939068,0.00021918,2]
[401989363,1768441850335,-466.939068,0.00021918,2]
[401989364,1768441850345,-466.939068,0.00021918,2]
[401989365,1768441850355,-466.939068,0.00021918,2]
[401989366,1768441850364,-466.939068,0.00021918,2]
[401989367,1768441850375,-466.939068,0.00021918,2]
[401989368,1768441850384,-466.939068,0.00021918,2]
[401989369,1768441850396,-466.939065,0.00021918,2]
[401989370,1768441850406,-210.355603,0.00021918,2]
[401989371,1768441850416,-151.0,0.00021918,2]
[401989372,1768441850426,-151.0,0.00021918,2]
[401989373,1768441850435,-151.0,0.00021918,2]
[401989374,1768441850445,-151.0,0.00021918,2]
[401989375,1768441850455,-151.0,0.00021918,2]
[401989376,1768441850464,-151.0,0.00021918,2]
[401989377,1768441850474,-151.0,0.00021918,2]
[401989378,1768441850483,-151.0,0.00021918,2]
[401989379,1768441850492,-151.0,0.00021918,2]
[401989380,1768441850502,-151.0,0.00021918,2]
[401989381,1768441850511,-151.0,0.00021918,2]
[401989382,1768441850521,-219.878888,0.00021918,2]
[401989383,1768441850531,-275.55471384,0.00021918,2]
[401989384,1768441850541,-151.0,0.00021918,2]
[401989385,1768441850551,-151.0,0.00021918,2]
[401989386,1768441850560,-151.0,0.00021918,2]
[401989387,1768441850570,-151.0,0.00021918,2]
[401989388,1768441850579,-151.0,0.00021918,2]
[401989389,1768441850589,-151.0,0.00021918,2]
[401989390,1768441850598,-151.0,0.00021918,2]
[401989391,1768441850607,-151.0,0.00021918,2]
[401989392,1768441850617,-151.0,0.00021918,2]
[401989393,1768441850627,-151.0,0.00021918,2]
[401989394,1768441850637,-151.0,0.00021918,2]
[401989395,1768441850647,-151.0,0.00021918,2]
[401989396,1768441850657,-151.0,0.00021918,2]
[401989397,1768441850667,-151.0,0.00021918,2]
[401989398,1768441850677,-228.541891,0.00021918,2]
[401989399,1768441850687,-151.0,0.00021918,2]
[401989400,1768441850697,-151.0,0.00021918,2]
[401989401,1768441850719,-151.0,0.00021918,2]
[401989402,1768441850730,-151.0,0.00021918,2]
[401989403,1768441850741,-152.158812,0.00021918,2]
[401989404,1768441850753,-151.0,0.00021918,2]
[401989405,1768441850764,-151.0,0.00021918,2]
[401989406,1768441850775,-151.0,0.00021918,2]
[401989407,1768441850973,-151.0,0.00021918,2]
[401989408,1768441851000,-151.0,0.00021918,2]
[401989409,1768441851010,-151.0,0.00021918,2]
[401989410,1768441851020,-151.0,0.00021918,2]
[401989411,1768441851029,-151.0,0.00021918,2]
[401989412,1768441851038,-151.0,0.00021918,2]
[401989413,1768441851048,-151.0,0.00021918,2]
[401989414,1768441851059,-151.0,0.00021918,2]
[401989415,1768441851068,-280.669282,0.00021918,2]
[401989416,1768441851078,-1417.242124,0.00021918,2]
[401989417,1768441851089,-1417.242124,0.00021918,2]
[401989418,1768441851101,-1417.242124,0.00021918,2]
[401989419,1768441851111,-1417.242124,0.00021918,2]
[401989420,1768441851120,-1417.242124,0.00021918,2]
[401989421,1768441851131,-1417.242124,0.00021918,2]
[401989422,1768441851140,-1417.242124,0.00021918,2]
[401989423,1768441851149,-1417.242124,0.00021918,2]
[401989424,1768441851159,-1417.242124,0.00021918,2]
[401989425,1768441851169,-1417.242124,0.00021918,2]
[401989426,1768441851179,-1417.242124,0.00021918,2]
[401989427,1768441851188,-1417.242124,0.00021918,2]
[401989428,1768441851197,-1417.242124,0.00021918,2]
[401989429,1768441851207,-1417.242124,0.00021918,2]
[401989430,1768441851217,-1417.242124,0.00021918,2]
[401989431,1768441851226,-151.0,0.00021918,2]
[401989432,1768441851236,-1417.242124,0.00021918,2]
[401989433,1768441851246,-151.0,0.00021918,2]
[401989434,1768441851255,-1417.242124,0.00021918,2]
[401989435,1768441851264,-154.438873,0.00021918,2]
[401989436,1768441851273,-1417.242124,0.00021918,2]
[401989437,1768441851282,-1417.242124,0.00021918,2]
[401989438,1768441851292,-1417.242128,0.00021918,2]
[401989439,1768441851301,-153.36815,0.00021918,2]
[401989440,1768441851312,-1200.0,0.00021918,2]
[401989441,1768441851321,-650.0,0.00021918,2]
[401989442,1768441851330,-8000.0,0.00021918,2]
[401989443,1768441851340,-402.33,0.00021918,30]
[401989444,1768441851349,-253.9043756,0.00021918,2]
[401989445,1768441851359,-1014.60188488,0.00021918,2]
[401989446,1768441851368,-163.58160819,0.00021995,2]
[401989447,1768441851377,-2144.6,0.00022,7]
[401989448,1768441851387,-2000.0,0.00022,7]
[401989449,1768441851397,-26286.76950825,0.00022078,2]
[401989450,1768441851569,-1500.0,0.00022078,2]
[401989451,1768441851940,-297.09115474,0.00015341,2]
[401989452,1768441851950,-232.4660105,0.00022078,2]
[401989453,1768441852077,-1917.66666667,0.00022078,2]
[401989470,1768442790698,262.00637063,0.00022864,120]
[401989622,1768443038697,-222.41280966,9.958e-05,2]
[401989624,1768443038706,-500.0,9.958e-05,2]
[401989626,1768443038716,-500.0,9.958e-05,2]
[401989628,1768443038725,-500.0,9.958e-05,2]
[401989630,1768443038734,-372.7598718,9.958e-05,2]
[401989632,1768443038743,-500.0,9.958e-05,2]
[401989634,1768443038753,-500.0,9.958e-05,2]
[401989635,1768443038762,-500.0,9.958e-05,2]
[401989636,1768443038771,-500.0,9.958e-05,2]
[401989637,1768443038780,-500.0,9.958e-05,2]
[401989638,1768443038789,-500.0,9.958e-05,2]
[401989639,1768443038799,-559.77077311,9.958e-05,2]
[401989640,1768443038808,-500.0,9.958e-05,2]
[401989641,1768443038817,-500.0,9.958e-05,2]
[401989642,1768443038827,-495.16083137,9.958e-05,2]
[401989643,1768443038836,-500.0,9.958e-05,2]
[401989644,1768443038845,-500.0,9.958e-05,2]
[401989645,1768443038854,-500.0,9.958e-05,2]
[401989646,1768443038864,-500.0,9.958e-05,2]
[401989647,1768443038874,-500.0,9.958e-05,2]
[401989648,1768443038883,-500.0,9.958e-05,2]
[401989649,1768443038893,-500.0,9.958e-05,2]
[401989650,1768443038902,-500.0,9.958e-05,2]
[401989651,1768443038911,-500.0,9.958e-05,2]
[401989652,1768443038920,-500.0,9.958e-05,2]
[401989653,1768443038930,-500.0,9.958e-05,2]
[401989654,1768443038939,-500.0,9.958e-05,2]
[401989655,1768443038949,-500.0,9.958e-05,2]
[401989656,1768443038958,-500.0,9.958e-05,2]
[401989657,1768443038967,-500.0,9.958e-05,2]
[401989658,1768443038977,-500.0,9.958e-05,2]
[401989659,1768443038986,-500.0,9.958e-05,2]
[401989660,1768443038995,-500.0,9.958e-05,2]
[401989661,1768443039005,-500.0,9.958e-05,2]
[401989662,1768443039014,-500.0,9.958e-05,2]
[401989663,1768443039023,-500.0,9.958e-05,2]
[401989664,1768443039033,-500.0,9.958e-05,2]
[401989665,1768443039042,-500.0,9.958e-05,2]
[401989666,1768443039051,-500.0,9.958e-05,2]
[401989667,1768443039061,-500.0,9.958e-05,2]
[401989668,1768443039070,-500.0,9.958e-05,2]
[401989669,1768443039080,-500.0,9.958e-05,2]
[401989670,1768443039090,-500.0,9.958e-05,2]
[401989671,1768443039099,-500.0,9.958e-05,2]
[401989672,1768443039109,-500.0,9.958e-05,2]
[401989673,1768443039118,-500.0,9.958e-05,2]
[401989674,1768443039127,-500.0,9.958e-05,2]
[401989675,1768443039136,-500.0,9.958e-05,2]
[401989676,1768443039146,-500.0,9.958e-05,2]
[401989677,1768443039156,-416.00916011,9.958e-05,2]
[401989678,1768443039165,-625.45938942,9.958e-05,2]
[401989679,1768443039174,-500.0,9.958e-05,2]
[401989680,1768443039184,-500.0,9.958e-05,2]
[401989681,1768443039193,-500.0,9.958e-05,2]
[401989682,1768443039203,-500.0,9.958e-05,2]
[401989683,1768443039212,-500.0,9.958e-05,2]
[401989684,1768443039221,-500.0,9.958e-05,2]
[401989685,1768443039231,-500.0,9.958e-05,2]
[401989686,1768443039240,-500.0,9.958e-05,2]
[401989687,1768443039250,-500.0,9.958e-05,2]
[401989688,1768443039258,-500.0,9.958e-05,2]
[401989689,1768443039267,-500.0,9.958e-05,2]
[401989690,1768443039277,-500.0,9.958e-05,2]
[401989691,1768443039286,-500.0,9.958e-05,2]
[401989692,1768443039296,-500.0,9.958e-05,2]
[401989693,1768443039306,-500.0,9.958e-05,2]
[401989694,1768443039316,-500.0,9.958e-05,2]
[401989695,1768443039326,-500.0,9.958e-05,2]
[401989696,1768443039336,-500.0,9.958e-05,2]
[401989697,1768443039345,-500.0,9.958e-05,2]
[401989698,1768443039354,-500.0,9.958e-05,2]
[401989699,1768443039364,-500.0,9.958e-05,2]
[401989700,1768443039373,-500.0,9.958e-05,2]
[401989701,1768443039382,-500.0,9.958e-05,2]
[401989702,1768443039392,-500.0,9.958e-05,2]
[401989703,1768443039401,-500.0,9.958e-05,2]
[401989704,1768443039412,-500.0,9.958e-05,2]
[401989705,1768443039424,-500.0,9.958e-05,2]
[401989706,1768443039434,-500.0,9.958e-05,2]